[Event "Titled Tuesday Blitz November 15 Early 2022"]
[White "Garcia Ramos, Daniel"]
[Black "Vokhidov, Shamsiddin"]
[WhiteFideId "32010311"]
[BlackFideId "14204223"]
[WhiteElo "2357"]
[BlackElo "2619"]
[Result "0-1"]
[Round "02"]
[TimeControl "180+1"]
[Date "2022.11.15"]
[WhiteClock "0:00:03"]
[BlackClock "0:00:19"]

1. e4 {[%clk 0:03:00]}  c5 {[%clk 0:02:59]} 2. Nf3 {[%clk 0:03:00]}  d6 {[%clk 0:03:00]} 3. d4 {[%clk 0:03:00]}  cxd4 {[%clk 0:03:01]} 4. Nxd4 {[%clk 0:03:01]}  Nf6 {[%clk 0:03:01]} 5. f3 {[%clk 0:03:01]}  e5 {[%clk 0:02:59]} 6. Nb3 {[%clk 0:03:01]}  d5 {[%clk 0:03:00]} 7. Bg5 {[%clk 0:03:02]}  d4 {[%clk 0:03:00]} 8. c3 {[%clk 0:03:02]}  h6 {[%clk 0:03:00]} 9. Bxf6 {[%clk 0:02:56]}  Qxf6 {[%clk 0:03:00]} 10. cxd4 {[%clk 0:02:56]}  Bb4+ {[%clk 0:03:01]} 11. Nc3 {[%clk 0:02:55]}  O-O {[%clk 0:03:00]} 12. dxe5 {[%clk 0:02:46]}  Qxe5 {[%clk 0:03:00]} 13. Qd4 {[%clk 0:02:46]}  Qe7 {[%clk 0:02:53]} 14. O-O-O {[%clk 0:02:18]}  Bxc3 {[%clk 0:02:52]} 15. Qxc3 {[%clk 0:02:13]}  Be6 {[%clk 0:02:52]} 16. Kb1 {[%clk 0:02:05]}  Rc8 {[%clk 0:02:52]} 17. Qe3 {[%clk 0:01:56]}  Nc6 {[%clk 0:02:45]} 18. Bb5 {[%clk 0:01:50]}  Nb4 {[%clk 0:02:45]} 19. a3 {[%clk 0:01:48]}  Nc2 {[%clk 0:02:44]} 20. Qd3 {[%clk 0:01:37]}  Nxa3+ {[%clk 0:02:42]} 21. bxa3 {[%clk 0:01:37]}  Qxa3 {[%clk 0:02:43]} 22. Rd2 {[%clk 0:01:12]}  Qxb3+ {[%clk 0:01:40]} 23. Qxb3 {[%clk 0:01:11]}  Bxb3 {[%clk 0:01:41]} 24. Kb2 {[%clk 0:00:52]}  Be6 {[%clk 0:01:38]} 25. Rhd1 {[%clk 0:00:45]}  Rc5 {[%clk 0:01:25]} 26. Bd7 {[%clk 0:00:16]}  Bc4 {[%clk 0:01:17]} 27. Rd6 {[%clk 0:00:12]}  Rd8 {[%clk 0:01:07]} 28. f4 {[%clk 0:00:08]}  a5 {[%clk 0:00:59]} 29. e5 {[%clk 0:00:08]}  Kf8 {[%clk 0:00:55]} 30. Bg4 {[%clk 0:00:02]}  Rxd6 {[%clk 0:00:55]} 31. exd6 {[%clk 0:00:03]}  Ke8 {[%clk 0:00:54]} 32. Re1+ {[%clk 0:00:02]}  Kd8 {[%clk 0:00:35]} 33. d7 {[%clk 0:00:02]}  f5 {[%clk 0:00:33]} 34. Bh3 {[%clk 0:00:01]}  Kxd7 {[%clk 0:00:33]} 35. g4 {[%clk 0:00:02]}  Rb5+ {[%clk 0:00:31]} 36. Kc3 {[%clk 0:00:02]}  Rb3+ {[%clk 0:00:32]} 37. Kxc4 {[%clk 0:00:01]}  Rxh3 {[%clk 0:00:32]} 38. gxf5 {[%clk 0:00:02]}  Rxh2 {[%clk 0:00:33]} 39. Kb5 {[%clk 0:00:02]}  Rf2 {[%clk 0:00:16]} 40. Rg1 {[%clk 0:00:02]}  Rxf4 {[%clk 0:00:16]} 41. Rxg7+ {[%clk 0:00:02]}  Kc8 {[%clk 0:00:15]} 42. Kxa5 {[%clk 0:00:02]}  Rxf5+ {[%clk 0:00:15]} 43. Kb6 {[%clk 0:00:03]}  Rf6+ {[%clk 0:00:15]} 44. Kb5 {[%clk 0:00:04]}  Kb8 {[%clk 0:00:15]} 45. Rh7 {[%clk 0:00:04]}  Ka7 {[%clk 0:00:15]} 46. Ka5 {[%clk 0:00:02]}  Rf5+ {[%clk 0:00:15]} 47. Kb4 {[%clk 0:00:03]}  h5 {[%clk 0:00:16]} 48. Ka4 {[%clk 0:00:03]}  Ka6 {[%clk 0:00:16]} 49. Kb4 {[%clk 0:00:03]}  b6 {[%clk 0:00:16]} 50. Kc4 {[%clk 0:00:02]}  Rf4+ {[%clk 0:00:16]} 51. Kb3 {[%clk 0:00:02]}  h4 {[%clk 0:00:16]} 52. Rh5 {[%clk 0:00:02]}  b5 {[%clk 0:00:16]} 53. Rh8 {[%clk 0:00:02]}  Ka5 {[%clk 0:00:16]} 54. Ra8+ {[%clk 0:00:03]}  Kb6 {[%clk 0:00:17]} 55. Rb8+ {[%clk 0:00:03]}  Kc5 {[%clk 0:00:16]} 56. Rc8+ {[%clk 0:00:04]}  Kd4 {[%clk 0:00:17]} 57. Rh8 {[%clk 0:00:04]}  Ke3 {[%clk 0:00:16]} 58. Rh5 {[%clk 0:00:02]}  b4 {[%clk 0:00:16]} 59. Ka4 {[%clk 0:00:01]}  Kf3 {[%clk 0:00:16]} 60. Kb3 {[%clk 0:00:02]}  Kg3 {[%clk 0:00:17]} 61. Rh8 {[%clk 0:00:02]}  h3 {[%clk 0:00:17]} 62. Rg8+ {[%clk 0:00:02]}  Rg4 {[%clk 0:00:18]} 63. Rd8 {[%clk 0:00:02]}  h2 {[%clk 0:00:18]} 64. Rd1 {[%clk 0:00:02]}  Kh3 {[%clk 0:00:18]} 65. Rd3+ {[%clk 0:00:03]}  Rg3 {[%clk 0:00:19]} 0-1


[Site "https://www.chess.com"]

[Event "Titled Tuesday Blitz November 15 Early 2022"]
[White "Garv Gaur"]
[Black "Krzyzanowski, Marcin"]
[WhiteFideId "45030839"]
[BlackFideId "1132199"]
[WhiteElo "1960"]
[BlackElo "2435"]
[Result "0-1"]
[Round "02"]
[TimeControl "180+1"]
[Date "2022.11.16"]
[WhiteClock "0:00:45"]
[BlackClock "0:01:56"]

1. d4 {[%clk 0:03:00]}  d6 {[%clk 0:02:59]} 2. Nf3 {[%clk 0:03:00]}  Nf6 {[%clk 0:02:59]} 3. c4 {[%clk 0:03:00]}  c6 {[%clk 0:02:59]} 4. g3 {[%clk 0:02:59]}  g6 {[%clk 0:02:58]} 5. Bg2 {[%clk 0:02:59]}  Bg7 {[%clk 0:02:59]} 6. O-O {[%clk 0:02:59]}  O-O {[%clk 0:02:59]} 7. Nc3 {[%clk 0:03:00]}  Bg4 {[%clk 0:02:59]} 8. Ne1 {[%clk 0:02:57]}  e5 {[%clk 0:02:58]} 9. Nc2 {[%clk 0:02:54]}  Na6 {[%clk 0:02:56]} 10. f3 {[%clk 0:02:52]}  Be6 {[%clk 0:02:56]} 11. b3 {[%clk 0:02:50]}  Re8 {[%clk 0:02:56]} 12. e4 {[%clk 0:02:49]}  exd4 {[%clk 0:02:50]} 13. Nxd4 {[%clk 0:02:50]}  Bd7 {[%clk 0:02:47]} 14. Be3 {[%clk 0:02:47]}  Nc5 {[%clk 0:02:46]} 15. Rc1 {[%clk 0:02:46]}  a5 {[%clk 0:02:44]} 16. Bf4 {[%clk 0:02:42]}  Bc8 {[%clk 0:02:37]} 17. Nde2 {[%clk 0:02:34]}  d5 {[%clk 0:02:26]} 18. cxd5 {[%clk 0:02:32]}  cxd5 {[%clk 0:02:26]} 19. exd5 {[%clk 0:02:24]}  Bf5 {[%clk 0:02:25]} 20. Qd2 {[%clk 0:02:16]}  Nd3 {[%clk 0:02:24]} 21. Rcd1 {[%clk 0:02:16]}  Nxd5 {[%clk 0:02:22]} 22. Nxd5 {[%clk 0:02:04]}  Qxd5 {[%clk 0:02:23]} 23. g4 {[%clk 0:01:38]}  Rxe2 {[%clk 0:02:13]} 24. Qxe2 {[%clk 0:01:30]}  Nxf4 {[%clk 0:02:13]} 25. Rxd5 {[%clk 0:01:29]}  Nxe2+ {[%clk 0:02:12]} 26. Kf2 {[%clk 0:01:29]}  Nf4 {[%clk 0:02:09]} 27. Rd2 {[%clk 0:01:17]}  Bc3 {[%clk 0:02:05]} 28. Rd6 {[%clk 0:01:08]}  Nd3+ {[%clk 0:01:59]} 29. Kg1 {[%clk 0:00:59]}  Bb4 {[%clk 0:01:59]} 30. Rd5 {[%clk 0:00:49]}  Nf4 {[%clk 0:01:59]} 31. Rdd1 {[%clk 0:00:45]}  Bd3 {[%clk 0:01:56]} 0-1


[Site "https://www.chess.com"]

[Event "Titled Tuesday Blitz November 15 Early 2022"]
[White "Gedgafov, Chamal"]
[Black "Ghosh, Chanchal Kumer"]
[WhiteFideId "34130621"]
[BlackFideId "10201858"]
[WhiteElo "2067"]
[BlackElo "2058"]
[Result "0-1"]
[Round "02"]
[TimeControl "180+1"]
[Date "2022.11.16"]
[WhiteClock "0:00:44"]
[BlackClock "0:00:19"]

1. d4 {[%clk 0:02:58]}  d5 {[%clk 0:02:59]} 2. Nf3 {[%clk 0:02:59]}  e6 {[%clk 0:02:58]} 3. g3 {[%clk 0:02:58]}  Nf6 {[%clk 0:02:59]} 4. Bg2 {[%clk 0:02:59]}  Bd6 {[%clk 0:02:58]} 5. O-O {[%clk 0:03:00]}  O-O {[%clk 0:02:57]} 6. Re1 {[%clk 0:03:00]}  c5 {[%clk 0:02:57]} 7. c3 {[%clk 0:03:00]}  Nc6 {[%clk 0:02:56]} 8. Nbd2 {[%clk 0:03:00]}  cxd4 {[%clk 0:02:55]} 9. cxd4 {[%clk 0:03:01]}  e5 {[%clk 0:02:52]} 10. dxe5 {[%clk 0:03:01]}  Nxe5 {[%clk 0:02:52]} 11. Nxe5 {[%clk 0:03:01]}  Bxe5 {[%clk 0:02:53]} 12. Nf3 {[%clk 0:03:01]}  Bc7 {[%clk 0:02:49]} 13. Bg5 {[%clk 0:03:01]}  Be6 {[%clk 0:02:48]} 14. Nd4 {[%clk 0:03:00]}  Bb6 {[%clk 0:02:46]} 15. e3 {[%clk 0:02:57]}  h6 {[%clk 0:02:46]} 16. Bf4 {[%clk 0:02:48]}  Qd7 {[%clk 0:02:46]} 17. Nxe6 {[%clk 0:02:48]}  Qxe6 {[%clk 0:02:42]} 18. Rc1 {[%clk 0:02:41]}  Rac8 {[%clk 0:02:39]} 19. h4 {[%clk 0:02:34]}  Rfd8 {[%clk 0:02:19]} 20. Qd3 {[%clk 0:02:32]}  Ne4 {[%clk 0:02:02]} 21. Bxe4 {[%clk 0:02:32]}  dxe4 {[%clk 0:02:01]} 22. Qa3 {[%clk 0:02:22]}  Rxc1 {[%clk 0:01:52]} 23. Rxc1 {[%clk 0:02:21]}  f6 {[%clk 0:01:52]} 24. h5 {[%clk 0:02:17]}  Rd5 {[%clk 0:01:38]} 25. Qb3 {[%clk 0:02:05]}  Kh7 {[%clk 0:01:37]} 26. Rd1 {[%clk 0:02:02]}  Rxd1+ {[%clk 0:01:36]} 27. Qxd1 {[%clk 0:02:03]}  Qxa2 {[%clk 0:01:33]} 28. Qd7 {[%clk 0:02:02]}  Qc4 {[%clk 0:01:19]} 29. Qf5+ {[%clk 0:02:01]}  Kh8 {[%clk 0:01:18]} 30. Qg6 {[%clk 0:01:57]}  Qe6 {[%clk 0:01:16]} 31. g4 {[%clk 0:01:52]}  Bc5 {[%clk 0:01:08]} 32. Kg2 {[%clk 0:01:51]}  Bf8 {[%clk 0:01:07]} 33. Bb8 {[%clk 0:01:40]}  a5 {[%clk 0:01:05]} 34. Bc7 {[%clk 0:01:40]}  a4 {[%clk 0:01:03]} 35. Bb8 {[%clk 0:01:39]}  b5 {[%clk 0:01:03]} 36. Ba7 {[%clk 0:01:39]}  b4 {[%clk 0:01:03]} 37. Bd4 {[%clk 0:01:39]}  a3 {[%clk 0:01:02]} 38. bxa3 {[%clk 0:01:39]}  bxa3 {[%clk 0:01:03]} 39. f3 {[%clk 0:01:29]}  exf3+ {[%clk 0:01:00]} 40. Kxf3 {[%clk 0:01:30]}  a2 {[%clk 0:01:00]} 41. Qc2 {[%clk 0:01:26]}  Bd6 {[%clk 0:00:53]} 42. Qa4 {[%clk 0:01:24]}  Be5 {[%clk 0:00:51]} 43. Qa8+ {[%clk 0:01:23]}  Kh7 {[%clk 0:00:51]} 44. Qe4+ {[%clk 0:01:23]}  Kg8 {[%clk 0:00:51]} 45. Qa8+ {[%clk 0:01:23]}  Kf7 {[%clk 0:00:51]} 46. Qa7+ {[%clk 0:01:22]}  Ke8 {[%clk 0:00:42]} 47. Qa8+ {[%clk 0:01:19]}  Kd7 {[%clk 0:00:41]} 48. Qb7+ {[%clk 0:01:20]}  Bc7 {[%clk 0:00:38]} 49. Qb5+ {[%clk 0:01:20]}  Ke7 {[%clk 0:00:36]} 50. Bc5+ {[%clk 0:01:19]}  Kf7 {[%clk 0:00:35]} 51. Qb7 {[%clk 0:01:19]}  a1=Q {[%clk 0:00:29]} 52. Qxc7+ {[%clk 0:01:19]}  Kg8 {[%clk 0:00:29]} 53. Qd8+ {[%clk 0:01:18]}  Kh7 {[%clk 0:00:28]} 54. Qd3+ {[%clk 0:01:19]}  Kh8 {[%clk 0:00:27]} 55. Qd8+ {[%clk 0:01:18]}  Qg8 {[%clk 0:00:27]} 56. Qd3 {[%clk 0:01:17]}  Qe5 {[%clk 0:00:27]} 57. Bd4 {[%clk 0:01:16]}  Qee6 {[%clk 0:00:26]} 58. Kg3 {[%clk 0:01:12]}  Qgc8 {[%clk 0:00:26]} 59. Qe2 {[%clk 0:01:11]}  Qc7+ {[%clk 0:00:24]} 60. Kh3 {[%clk 0:01:11]}  Qed6 {[%clk 0:00:23]} 61. Qg2 {[%clk 0:01:11]}  Qc1 {[%clk 0:00:19]} 62. Qa8+ {[%clk 0:01:08]}  Kh7 {[%clk 0:00:18]} 63. Qe4+ {[%clk 0:01:07]}  Kg8 {[%clk 0:00:19]} 64. Qe8+ {[%clk 0:01:05]}  Qf8 {[%clk 0:00:17]} 65. Qe6+ {[%clk 0:01:05]}  Kh8 {[%clk 0:00:18]} 66. Qe4 {[%clk 0:01:05]}  Qf1+ {[%clk 0:00:18]} 67. Kh4 {[%clk 0:01:02]}  Qd8 {[%clk 0:00:18]} 68. Bb6 {[%clk 0:00:54]}  Qf8 {[%clk 0:00:16]} 69. Bc7 {[%clk 0:00:50]}  f5 {[%clk 0:00:16]} 70. gxf5 {[%clk 0:00:49]}  Q8xf5 {[%clk 0:00:16]} 71. Qe8+ {[%clk 0:00:49]}  Qf8 {[%clk 0:00:17]} 72. Qe4 {[%clk 0:00:47]}  Q1f6+ {[%clk 0:00:18]} 73. Kg4 {[%clk 0:00:46]}  Qg5+ {[%clk 0:00:16]} 74. Kh3 {[%clk 0:00:46]}  Qf1+ {[%clk 0:00:16]} 75. Kh2 {[%clk 0:00:45]}  Qfg1+ {[%clk 0:00:17]} 76. Kh3 {[%clk 0:00:45]}  Qf1+ {[%clk 0:00:16]} 77. Kh2 {[%clk 0:00:45]}  Qxh5+ {[%clk 0:00:17]} 78. Kg3 {[%clk 0:00:44]}  Qg5+ {[%clk 0:00:17]} 79. Kh2 {[%clk 0:00:44]}  Qfg1+ {[%clk 0:00:17]} 80. Kh3 {[%clk 0:00:44]}  Qh5+ {[%clk 0:00:18]} 81. Qh4 {[%clk 0:00:43]}  Qh1+ {[%clk 0:00:19]} 82. Bh2 {[%clk 0:00:43]}  Qxh4+ {[%clk 0:00:18]} 83. Kxh4 {[%clk 0:00:44]}  Qxh2+ {[%clk 0:00:19]} 0-1


[Site "https://www.chess.com"]

[Event "Titled Tuesday Blitz November 15 Early 2022"]
[White "Gheorghiu, Calin"]
[Black "Barbashin, Igor"]
[WhiteFideId "1200305"]
[BlackFideId "4155718"]
[WhiteElo "2225"]
[BlackElo "2138"]
[Result "1-0"]
[Round "02"]
[TimeControl "180+1"]
[Date "2022.11.16"]
[WhiteClock "0:00:13"]
[BlackClock "0:00:05"]

1. d4 {[%clk 0:02:57]}  Nf6 {[%clk 0:02:59]} 2. Bf4 {[%clk 0:02:51]}  d6 {[%clk 0:02:54]} 3. Nf3 {[%clk 0:02:50]}  g6 {[%clk 0:02:53]} 4. c3 {[%clk 0:02:49]}  Bg7 {[%clk 0:02:53]} 5. Nbd2 {[%clk 0:02:49]}  Nbd7 {[%clk 0:02:52]} 6. e4 {[%clk 0:02:49]}  O-O {[%clk 0:02:11]} 7. Be2 {[%clk 0:02:45]}  Nh5 {[%clk 0:02:07]} 8. Be3 {[%clk 0:02:24]}  e5 {[%clk 0:02:07]} 9. O-O {[%clk 0:02:14]}  Nf4 {[%clk 0:02:02]} 10. Bxf4 {[%clk 0:02:10]}  exf4 {[%clk 0:02:03]} 11. Bc4 {[%clk 0:01:59]}  g5 {[%clk 0:01:54]} 12. h3 {[%clk 0:01:56]}  h5 {[%clk 0:01:46]} 13. Nh2 {[%clk 0:01:50]}  Nf6 {[%clk 0:01:13]} 14. e5 {[%clk 0:01:43]}  dxe5 {[%clk 0:01:12]} 15. dxe5 {[%clk 0:01:40]}  Nh7 {[%clk 0:00:43]} 16. Qxh5 {[%clk 0:01:26]}  Bxe5 {[%clk 0:00:42]} 17. Rad1 {[%clk 0:01:14]}  Qf6 {[%clk 0:00:33]} 18. Ne4 {[%clk 0:01:10]}  Qg7 {[%clk 0:00:28]} 19. Nf3 {[%clk 0:01:05]}  Bf6 {[%clk 0:00:20]} 20. Nxf6+ {[%clk 0:00:45]}  Qxf6 {[%clk 0:00:20]} 21. Bd3 {[%clk 0:00:39]}  Bf5 {[%clk 0:00:19]} 22. Bxf5 {[%clk 0:00:29]}  Qxf5 {[%clk 0:00:20]} 23. h4 {[%clk 0:00:28]}  f6 {[%clk 0:00:20]} 24. Nd4 {[%clk 0:00:24]}  Qd7 {[%clk 0:00:17]} 25. Qg6+ {[%clk 0:00:23]}  Qg7 {[%clk 0:00:16]} 26. Qxg7+ {[%clk 0:00:23]}  Kxg7 {[%clk 0:00:16]} 27. Ne6+ {[%clk 0:00:23]}  Kg6 {[%clk 0:00:15]} 28. Nxf8+ {[%clk 0:00:23]}  Rxf8 {[%clk 0:00:16]} 29. hxg5 {[%clk 0:00:20]}  fxg5 {[%clk 0:00:15]} 30. Rd7 {[%clk 0:00:20]}  Rc8 {[%clk 0:00:13]} 31. Re1 {[%clk 0:00:20]}  Nf6 {[%clk 0:00:13]} 32. Re6 {[%clk 0:00:20]}  Kf5 {[%clk 0:00:13]} 33. Rde7 {[%clk 0:00:21]}  Rd8 {[%clk 0:00:12]} 34. f3 {[%clk 0:00:21]}  Rd2 {[%clk 0:00:10]} 35. Re5+ {[%clk 0:00:20]}  Kg6 {[%clk 0:00:10]} 36. Re2 {[%clk 0:00:21]}  Rd1+ {[%clk 0:00:09]} 37. Kf2 {[%clk 0:00:20]}  Nh5 {[%clk 0:00:09]} 38. Rxc7 {[%clk 0:00:15]}  Ng3 {[%clk 0:00:08]} 39. Re1 {[%clk 0:00:15]}  Rd2+ {[%clk 0:00:08]} 40. Kg1 {[%clk 0:00:16]}  Rxb2 {[%clk 0:00:08]} 41. a4 {[%clk 0:00:13]}  Nf5 {[%clk 0:00:07]} 42. Re6+ {[%clk 0:00:12]}  Kh5 {[%clk 0:00:05]} 43. Rh7+ {[%clk 0:00:13]} 1-0


[Site "https://www.chess.com"]

[Event "Titled Tuesday Blitz November 15 Early 2022"]
[White "Gholami Orimi, Mahdi"]
[Black "Tasev, Dejan"]
[WhiteFideId "12558486"]
[BlackFideId "936618"]
[WhiteElo "2895"]
[BlackElo "2608"]
[Result "1-0"]
[Round "02"]
[TimeControl "180+1"]
[Date "2022.11.16"]
[WhiteClock "0:01:10"]
[BlackClock "0:00:46"]

1. d4 {[%clk 0:02:57]}  Nf6 {[%clk 0:02:59]} 2. c4 {[%clk 0:02:55]}  g6 {[%clk 0:02:59]} 3. Nc3 {[%clk 0:02:54]}  Bg7 {[%clk 0:03:00]} 4. e4 {[%clk 0:02:52]}  d6 {[%clk 0:02:59]} 5. Be2 {[%clk 0:02:52]}  O-O {[%clk 0:03:00]} 6. Nf3 {[%clk 0:02:53]}  Nbd7 {[%clk 0:02:58]} 7. O-O {[%clk 0:02:53]}  c5 {[%clk 0:02:58]} 8. d5 {[%clk 0:02:45]}  b5 {[%clk 0:02:54]} 9. cxb5 {[%clk 0:02:44]}  a6 {[%clk 0:02:53]} 10. bxa6 {[%clk 0:02:43]}  Bxa6 {[%clk 0:02:52]} 11. Re1 {[%clk 0:02:42]}  Bxe2 {[%clk 0:02:50]} 12. Rxe2 {[%clk 0:02:43]}  Ne8 {[%clk 0:02:50]} 13. Qc2 {[%clk 0:02:44]}  Nc7 {[%clk 0:02:47]} 14. b3 {[%clk 0:02:42]}  f6 {[%clk 0:02:38]} 15. Bb2 {[%clk 0:02:41]}  Ne5 {[%clk 0:02:38]} 16. Nd2 {[%clk 0:02:39]}  Qd7 {[%clk 0:02:34]} 17. h3 {[%clk 0:02:38]}  Rfb8 {[%clk 0:02:33]} 18. f4 {[%clk 0:02:37]}  Nf7 {[%clk 0:02:33]} 19. Nc4 {[%clk 0:02:36]}  Nb5 {[%clk 0:02:30]} 20. Nxb5 {[%clk 0:02:36]}  Qxb5 {[%clk 0:02:29]} 21. Re3 {[%clk 0:02:35]}  Bh6 {[%clk 0:02:10]} 22. Rf3 {[%clk 0:02:34]}  Bg7 {[%clk 0:02:09]} 23. a4 {[%clk 0:02:18]}  Qd7 {[%clk 0:02:02]} 24. Re1 {[%clk 0:02:17]}  Nd8 {[%clk 0:01:44]} 25. Qd1 {[%clk 0:02:03]}  Nb7 {[%clk 0:01:42]} 26. e5 {[%clk 0:02:02]}  Na5 {[%clk 0:01:29]} 27. Nxa5 {[%clk 0:01:52]}  Rxa5 {[%clk 0:01:29]} 28. exf6 {[%clk 0:01:52]}  exf6 {[%clk 0:01:29]} 29. f5 {[%clk 0:01:46]}  gxf5 {[%clk 0:01:19]} 30. Qd2 {[%clk 0:01:38]}  Raa8 {[%clk 0:01:13]} 31. Re6 {[%clk 0:01:31]}  c4 {[%clk 0:01:07]} 32. bxc4 {[%clk 0:01:20]}  Rxa4 {[%clk 0:01:06]} 33. Bxf6 {[%clk 0:01:10]}  Bxf6 {[%clk 0:00:54]} 34. Rxf6 {[%clk 0:01:10]}  Rb1+ {[%clk 0:00:48]} 35. Kh2 {[%clk 0:01:11]}  Qa7 {[%clk 0:00:46]} 36. Rg3+ {[%clk 0:01:10]} 1-0


[Site "https://www.chess.com"]

[Event "Titled Tuesday Blitz November 15 Early 2022"]
[White "Goh, Zi Han"]
[Black "Mohamed Anees M"]
[WhiteFideId "5819156"]
[BlackFideId "35065815"]
[WhiteElo "2026"]
[BlackElo "2135"]
[Result "0-1"]
[Round "02"]
[TimeControl "180+1"]
[Date "2022.11.16"]
[WhiteClock "0:00:03"]
[BlackClock "0:00:52"]

1. d4 {[%clk 0:03:00]}  d5 {[%clk 0:02:59]} 2. c4 {[%clk 0:02:59]}  c6 {[%clk 0:03:00]} 3. Nf3 {[%clk 0:02:59]}  Nf6 {[%clk 0:03:00]} 4. g3 {[%clk 0:02:59]}  Bf5 {[%clk 0:02:59]} 5. Bg2 {[%clk 0:02:59]}  e6 {[%clk 0:02:59]} 6. O-O {[%clk 0:02:59]}  h6 {[%clk 0:03:00]} 7. Nc3 {[%clk 0:02:56]}  Be7 {[%clk 0:03:00]} 8. h3 {[%clk 0:02:44]}  O-O {[%clk 0:02:55]} 9. Nd2 {[%clk 0:02:39]}  Nbd7 {[%clk 0:02:55]} 10. e4 {[%clk 0:02:36]}  dxe4 {[%clk 0:02:55]} 11. Ndxe4 {[%clk 0:02:37]}  Nxe4 {[%clk 0:02:53]} 12. Nxe4 {[%clk 0:02:38]}  Nf6 {[%clk 0:02:54]} 13. Nc3 {[%clk 0:02:24]}  Qb6 {[%clk 0:02:53]} 14. b3 {[%clk 0:02:00]}  Rfd8 {[%clk 0:02:52]} 15. Be3 {[%clk 0:02:00]}  c5 {[%clk 0:02:53]} 16. dxc5 {[%clk 0:01:43]}  Bxc5 {[%clk 0:02:54]} 17. Bxc5 {[%clk 0:01:40]}  Qxc5 {[%clk 0:02:55]} 18. Qe2 {[%clk 0:01:37]}  Bd3 {[%clk 0:02:54]} 19. Qf3 {[%clk 0:01:35]}  Bxf1 {[%clk 0:02:54]} 20. Rxf1 {[%clk 0:01:36]}  Rab8 {[%clk 0:02:51]} 21. Re1 {[%clk 0:01:20]}  b6 {[%clk 0:02:49]} 22. Ne2 {[%clk 0:01:07]}  Rd2 {[%clk 0:02:47]} 23. Qf4 {[%clk 0:01:00]}  Rbd8 {[%clk 0:02:46]} 24. Nc3 {[%clk 0:00:57]}  R8d3 {[%clk 0:02:40]} 25. Be4 {[%clk 0:00:50]}  Rd8 {[%clk 0:02:10]} 26. Bg2 {[%clk 0:00:31]}  Qd4 {[%clk 0:01:49]} 27. Ne4 {[%clk 0:00:24]}  Nxe4 {[%clk 0:01:47]} 28. Bxe4 {[%clk 0:00:24]}  Rxa2 {[%clk 0:01:46]} 29. Qf3 {[%clk 0:00:20]}  Ra1 {[%clk 0:01:40]} 30. Rxa1 {[%clk 0:00:19]}  Qxa1+ {[%clk 0:01:41]} 31. Kg2 {[%clk 0:00:19]}  Qd1 {[%clk 0:01:41]} 32. Qf4 {[%clk 0:00:14]}  Qxb3 {[%clk 0:01:39]} 33. Qc7 {[%clk 0:00:14]}  Rf8 {[%clk 0:01:36]} 34. c5 {[%clk 0:00:13]}  bxc5 {[%clk 0:01:35]} 35. Qxc5 {[%clk 0:00:14]}  Qb6 {[%clk 0:01:34]} 36. Qe5 {[%clk 0:00:13]}  a5 {[%clk 0:01:32]} 37. Bc2 {[%clk 0:00:12]}  Qb4 {[%clk 0:01:31]} 38. Qe3 {[%clk 0:00:07]}  Rd8 {[%clk 0:01:27]} 39. Qa7 {[%clk 0:00:04]}  g6 {[%clk 0:01:11]} 40. h4 {[%clk 0:00:04]}  Qc3 {[%clk 0:01:06]} 41. Be4 {[%clk 0:00:03]}  h5 {[%clk 0:01:03]} 42. Bf3 {[%clk 0:00:03]}  Rd2 {[%clk 0:01:01]} 43. Qa6 {[%clk 0:00:04]}  Qd4 {[%clk 0:00:57]} 44. Qf1 {[%clk 0:00:04]}  a4 {[%clk 0:00:57]} 45. Qe1 {[%clk 0:00:04]}  a3 {[%clk 0:00:57]} 46. Be4 {[%clk 0:00:02]}  a2 {[%clk 0:00:55]} 47. Bxg6 {[%clk 0:00:03]}  Qxf2+ {[%clk 0:00:52]} 48. Qxf2 {[%clk 0:00:03]}  Rxf2+ {[%clk 0:00:53]} 49. Kxf2 {[%clk 0:00:03]}  fxg6 {[%clk 0:00:52]} 0-1


[Site "https://www.chess.com"]